bitfinex/quotes_BTCUSD_20250602
["timestamp","ask_amount","ask_price","bid_price","bid_amount"]
[1748870571047,0.62594515,103970.0,103960.0,0.03164587]
[1748870573554,0.32737637,103970.0,103960.0,0.03164587]
[1748870573960,0.32737637,103970.0,103960.0,0.01534587]
[1748870574373,0.32737637,103970.0,103960.0,0.00024587]
[1748870574585,0.71833637,103970.0,103960.0,0.00024587]
[1748870574795,0.71833637,103970.0,103960.0,0.01684587]
[1748870575206,0.71833637,103970.0,103960.0,0.03324587]
[1748870575641,0.23486515,103970.0,103960.0,0.03324587]
[1748870576275,0.23486515,103970.0,103960.0,0.04778672]
[1748870576486,0.0136176,103970.0,103960.0,0.2594061]
[1748870576745,0.21559884,103970.0,103960.0,0.3360227]
[1748870576934,0.21559884,103970.0,103960.0,0.40136872]
[1748870577140,0.21559884,103970.0,103960.0,0.41098752]
[1748870577356,0.20598115,103970.0,103960.0,0.34564178]
[1748870577788,0.20598115,103970.0,103960.0,0.1532601]
[1748870578027,0.20598115,103970.0,103960.0,0.14364102]
[1748870578240,0.19636318,103970.0,103960.0,0.14364102]
[1748870578439,0.19636318,103970.0,103960.0,0.34564178]
[1748870578645,0.19636318,103970.0,103960.0,0.14364102]
[1748870582152,0.20598124,103970.0,103960.0,0.34564159]
[1748870582366,0.20598124,103970.0,103960.0,0.14364102]
[1748870584657,0.19636318,103970.0,103960.0,0.14364102]
[1748870584872,0.20598133,103970.0,103960.0,0.14364102]
[1748870585715,0.20598133,103970.0,103960.0,0.1532601]
[1748870585934,0.2155993,103970.0,103960.0,0.35526077]
[1748870586369,0.2155993,103970.0,103960.0,0.36487966]
[1748870587446,0.2155993,103970.0,103960.0,0.34564178]
[1748870587854,0.2155993,103970.0,103960.0,0.35526077]
[1748870588264,0.2155993,103970.0,103960.0,0.34564159]
[1748870589120,0.2155993,103970.0,103960.0,0.35526077]
[1748870589359,0.2155993,103970.0,103960.0,0.36487966]
[1748870589564,0.2155993,103970.0,103960.0,0.14364102]
[1748870589969,0.2155993,103970.0,103960.0,0.15034016]
[1748870590644,0.2155993,103970.0,103960.0,0.15034007]
[1748870590852,0.2155993,103970.0,103960.0,0.15034014]
[1748870591261,0.2155993,103970.0,103960.0,0.14364102]
[1748870591464,0.2155993,103970.0,103960.0,0.15034014]
[1748870592001,0.2155993,103970.0,103960.0,0.15034023]
[1748870592620,0.2155993,103970.0,103960.0,0.14364102]
[1748870592839,0.2155993,103970.0,103960.0,0.15034001]
[1748870593825,0.2155993,103970.0,103960.0,0.15034025]
[1748870594032,0.2155993,103970.0,103960.0,0.15034022]
[1748870594495,0.2155993,103970.0,103960.0,0.15034012]
[1748870594923,0.2155993,103970.0,103960.0,0.15034022]
[1748870595132,0.20598133,103970.0,103960.0,0.15034023]
[1748870595289,0.20598133,103970.0,103960.0,0.15034024]
[1748870595482,0.20598133,103970.0,103960.0,0.14364102]
[1748870595685,0.01361806,103970.0,103960.0,0.36195959]
[1748870595897,0.22521672,103970.0,103960.0,0.66035968]
[1748870596092,0.22521672,103970.0,103960.0,0.66035978]
[1748870596295,0.22521672,103970.0,103960.0,0.66997849]
[1748870596501,0.22521672,103970.0,103960.0,0.66997858]
[1748870596733,0.04247039,103970.0,103960.0,0.76775805]
[1748870596895,0.04247039,103970.0,103960.0,0.77757639]
[1748870597148,0.04247039,103970.0,103960.0,0.77757633]
[1748870597340,0.03285242,103970.0,103960.0,0.68941557]
[1748870597583,0.04047039,103970.0,103960.0,0.68941557]
[1748870597787,0.03185242,103970.0,103960.0,0.68941557]
[1748870598094,0.04908836,103970.0,103960.0,0.68941557]
[1748870598316,0.02123473,103970.0,103960.0,0.6894147]
[1748870598469,0.04047002,103970.0,103960.0,0.6894147]
[1748870598653,0.03947002,103970.0,103960.0,0.6894139]
[1748870599286,0.04808799,103970.0,103960.0,0.68941389]
[1748870599517,0.03847002,103970.0,103960.0,0.68941389]
[1748870599652,0.04808799,103970.0,103960.0,0.68941389]
[1748870599840,0.04808799,103970.0,103960.0,0.68941385]
[1748870600855,0.04808799,103970.0,103960.0,0.68941415]
[1748870602286,0.04808799,103970.0,103960.0,0.68271605]
[1748870602461,0.04808873,103970.0,103960.0,0.78192502]
[1748870602671,0.24045191,103970.0,103960.0,0.38119538]
[1748870602876,0.24045265,103970.0,103960.0,0.67947538]
[1748870603200,0.24045265,103970.0,103960.0,0.67947609]
[1748870603592,0.24045265,103970.0,103960.0,0.67959619]
[1748870603800,0.03847132,103970.0,103960.0,0.68921453]
[1748870603977,0.02885326,103970.0,103960.0,0.78172529]
[1748870604205,0.03847132,103970.0,103960.0,0.76540857]
[1748870604385,0.03847132,103970.0,103960.0,0.77210686]
[1748870605144,0.01923529,103970.0,103960.0,0.775027]
[1748870605360,0.02885326,103970.0,103960.0,0.78172653]
[1748870605550,0.02885326,103970.0,103960.0,0.78172804]
[1748870605761,0.01923529,103970.0,103960.0,0.78172804]
[1748870605970,0.02885326,103970.0,103960.0,0.7817279]
[1748870606176,0.02885326,103970.0,103960.0,0.775027]
[1748870606379,0.00961751,103970.0,103960.0,0.7817279]
[1748870606589,0.01923529,103970.0,103960.0,0.78172896]
[1748870606764,0.02885317,103970.0,103960.0,0.78172896]
[1748870606963,0.02885317,103970.0,103960.0,0.78172856]
[1748870607397,0.02885317,103970.0,103960.0,0.78172853]
[1748870607806,0.03847114,103970.0,103960.0,0.78172853]
[1748870608040,0.03847114,103970.0,103960.0,0.78172832]
[1748870608595,0.03847114,103970.0,103960.0,0.78172843]
[1748870609170,0.03847114,103970.0,103960.0,0.78172834]
[1748870609372,0.01923529,103970.0,103960.0,0.78172834]
[1748870609583,0.01923529,103970.0,103960.0,0.7817284]
[1748870609793,0.02885326,103970.0,103960.0,0.78172836]
[1748870610392,0.02885326,103970.0,103960.0,0.775027]
[1748870610598,0.02885317,103970.0,103960.0,0.78172838]
[1748870610813,0.03847114,103970.0,103960.0,0.78172838]
[1748870611758,0.03847114,103970.0,103960.0,0.78172828]
[1748870611963,0.03847114,103970.0,103960.0,0.78172843]
[1748870612165,0.03847114,103970.0,103960.0,0.476627]
[1748870612423,0.03847114,103970.0,103960.0,0.774747]
[1748870612626,0.03847114,103970.0,103960.0,0.78144848]
[1748870613046,0.23083432,103970.0,103960.0,0.45447291]
[1748870613254,0.0480892,103970.0,103960.0,0.67923864]
[1748870613465,0.0480892,103970.0,103960.0,0.67923881]
[1748870613684,0.02885317,103970.0,103960.0,0.67923877]
[1748870613889,0.03847114,103970.0,103960.0,0.67923877]
[1748870615161,0.03847114,103970.0,103960.0,0.67923911]
[1748870615365,0.03847114,103970.0,103960.0,0.67253716]
[1748870615582,0.03847114,103970.0,103960.0,0.67923911]
[1748870615790,0.03847114,103970.0,103960.0,0.67923935]
[1748870616228,0.0480892,103970.0,103960.0,0.67923935]
[1748870616430,0.03847114,103970.0,103960.0,0.67923951]
[1748870616788,0.03847114,103970.0,103960.0,0.67923946]
[1748870616996,0.03847114,103970.0,103960.0,0.67923989]
[1748870617197,0.0480892,103970.0,103960.0,0.67253716]
[1748870617401,0.0480892,103970.0,103960.0,0.66962146]
[1748870617621,0.0480892,103970.0,103960.0,0.66291873]
[1748870617745,0.0480892,103970.0,103960.0,0.66962149]
[1748870618106,0.0480892,103970.0,103960.0,0.66962208]
[1748870618233,0.0480892,103970.0,103960.0,0.67924051]
[1748870618438,0.03847114,103970.0,103960.0,0.67924051]
[1748870618667,0.0480892,103970.0,103960.0,0.77163183]
[1748870618902,0.04808984,103970.0,103960.0,0.75530995]
[1748870619118,0.24045302,103970.0,103960.0,0.76201341]
[1748870619341,0.00961751,103970.0,103960.0,0.67912053]
[1748870619564,0.0192352,103970.0,103960.0,0.67912062]
[1748870620009,0.0192352,103970.0,103960.0,0.67912119]
[1748870621516,0.2324366,103980.0,103970.0,0.34605823]
[1748870621718,0.2324366,103980.0,103970.0,0.34605832]
[1748870622306,0.2324366,103980.0,103970.0,0.34605833]
[1748870623044,0.2324366,103980.0,103970.0,0.3393536]
[1748870623253,0.2324366,103980.0,103970.0,0.34605941]
[1748870623658,0.2324366,103980.0,103970.0,0.3393536]
[1748870623871,0.2324366,103980.0,103970.0,0.35567737]
[1748870624081,0.2324366,103980.0,103970.0,0.3393536]
[1748870624278,0.2324366,103980.0,103970.0,0.43857071]
[1748870624482,0.2324366,103980.0,103970.0,0.4385708]
[1748870624814,0.2324366,103980.0,103970.0,0.34606085]
[1748870625405,0.22281965,103980.0,103970.0,0.13446146]
[1748870625603,0.22281965,103980.0,103970.0,0.32682464]
[1748870625805,0.22281965,103980.0,103970.0,0.33644505]
[1748870626009,0.22281965,103980.0,103970.0,0.32973563]
[1748870626266,0.22281965,103980.0,103970.0,0.33644505]
[1748870626396,0.21320242,103980.0,103970.0,0.13446372]
[1748870627240,0.21320242,103980.0,103970.0,0.1277543]
[1748870627442,0.21320242,103980.0,103970.0,0.13446375]
[1748870628305,0.21320242,103980.0,103970.0,0.1277543]
[1748870628512,0.21320242,103980.0,103970.0,0.13446396]
[1748870628721,0.26145166,103980.0,103970.0,0.13446396]
[1748870628936,0.20198115,103970.0,103960.0,0.03124587]
[1748870629126,0.20198115,103970.0,103960.0,0.14835088]
[1748870629340,0.20198115,103970.0,103960.0,0.1483511]
[1748870629953,0.20198115,103970.0,103960.0,0.14164102]
[1748870630161,0.20198115,103970.0,103960.0,0.14835024]
[1748870630367,0.25003443,103970.0,103960.0,0.00695509]
[1748870630575,0.20198115,103970.0,103960.0,0.00695527]
[1748870630995,0.20198115,103970.0,103960.0,0.02149401]
[1748870631466,0.20198115,103970.0,103960.0,0.01909401]
[1748870631658,0.21163955,103950.0,103940.0,0.3456965]
[1748870631864,0.21163955,103950.0,103940.0,0.49021867]
[1748870632064,0.21163955,103950.0,103940.0,0.44829867]
[1748870632265,0.21163955,103950.0,103940.0,0.44837867]
[1748870632682,0.21163955,103950.0,103940.0,0.44833867]
[1748870632907,0.21163955,103950.0,103940.0,0.44833885]
[1748870633120,0.21163955,103950.0,103940.0,0.44833381]
[1748870633334,0.20202001,103950.0,103940.0,0.46287466]
[1748870633967,0.20202001,103950.0,103940.0,0.46487172]
[1748870634153,0.19002001,103950.0,103940.0,0.46487172]
[1748870634349,0.19002001,103950.0,103940.0,0.46687172]
[1748870634577,0.19963983,103950.0,103940.0,0.4668717]
[1748870634802,0.19963983,103950.0,103940.0,0.66891133]
[1748870635005,0.19963983,103950.0,103940.0,0.66890947]
[1748870635209,0.19963983,103950.0,103940.0,0.76851367]
[1748870635644,0.19963983,103950.0,103940.0,0.76851336]
[1748870635797,0.19963983,103950.0,103940.0,0.76181548]
[1748870636002,0.19963983,103950.0,103940.0,0.76851327]
[1748870636410,0.19963983,103950.0,103940.0,0.77813402]
[1748870636618,0.19963983,103950.0,103940.0,0.47039327]
[1748870636892,0.19963983,103950.0,103940.0,0.76851327]
[1748870637125,0.19963983,103950.0,103940.0,0.76851175]
[1748870637349,0.19963983,103950.0,103940.0,0.75219464]
[1748870637570,0.19963983,103950.0,103940.0,0.66890755]
[1748870637797,0.19963983,103950.0,103940.0,0.16205165]
[1748870638027,0.19002001,103950.0,103940.0,0.46678768]
[1748870638344,0.19002001,103950.0,103940.0,0.46009165]
[1748870638559,0.19002001,103950.0,103940.0,0.46678644]
[1748870638993,0.19002001,103950.0,103940.0,0.7376347]
[1748870639455,0.19002001,103950.0,103940.0,0.72801386]
[1748870639689,0.19002001,103950.0,103940.0,0.66882607]
[1748870640432,0.19002001,103950.0,103940.0,0.66882513]
[1748870640929,0.19002001,103950.0,103940.0,0.46001165]
[1748870641171,0.19002001,103950.0,103940.0,0.46670532]
[1748870641394,0.17802001,103950.0,103940.0,0.53550592]
[1748870641638,0.17802001,103950.0,103940.0,0.73754555]
[1748870642312,0.17802001,103950.0,103940.0,0.74716574]
[1748870643517,0.17802001,103950.0,103940.0,0.7471654]
[1748870643741,0.17802001,103950.0,103940.0,0.73754456]
[1748870643945,0.18763983,103950.0,103940.0,0.73754456]
[1748870644169,0.18763983,103950.0,103940.0,0.74716531]
[1748870644403,0.18763983,103950.0,103940.0,0.73754432]
[1748870644617,0.18763983,103950.0,103940.0,0.73754419]
[1748870644844,0.18763983,103950.0,103940.0,0.73085188]
[1748870645060,0.18763983,103950.0,103940.0,0.74716487]
[1748870645308,0.18763983,103950.0,103940.0,0.75678578]
[1748870645535,0.18763983,103950.0,103940.0,0.75678575]
[1748870645752,0.18763983,103950.0,103940.0,0.6783644]
[1748870646199,0.18763983,103950.0,103940.0,0.68798494]
[1748870646425,0.18763983,103950.0,103940.0,0.67167212]
[1748870646633,0.18763983,103950.0,103940.0,0.67836426]
[1748870646870,0.18763983,103950.0,103940.0,0.67836433]
[1748870647065,0.18763983,103950.0,103940.0,0.68798508]
[1748870647268,0.18763983,103950.0,103940.0,0.69760569]
[1748870647881,0.18763983,103950.0,103940.0,0.697606]
[1748870648106,0.19725937,103950.0,103940.0,0.70722656]
[1748870648313,0.20687937,103950.0,103940.0,0.79973728]
[1748870648716,0.19239853,103960.0,103940.0,0.67836354]
[1748870648873,0.21161928,103960.0,103950.0,0.33309534]
[1748870649075,0.20200057,103960.0,103950.0,0.35902772]
[1748870649279,0.20200057,103960.0,103950.0,0.65666772]
[1748870649478,0.20200057,103960.0,103950.0,0.43833515]
[1748870649680,0.20200057,103960.0,103950.0,0.44502812]
[1748870649876,0.20200057,103960.0,103950.0,0.64704831]
[1748870650111,0.20200057,103960.0,103950.0,0.64704832]
[1748870650276,0.20200057,103960.0,103950.0,0.74431463]
[1748870650511,0.19238168,103960.0,103950.0,0.53267491]
[1748870650728,0.19238168,103960.0,103950.0,0.14738854]
[1748870650930,0.19238168,103960.0,103950.0,0.14738911]
[1748870651130,0.19238168,103960.0,103950.0,0.14738901]
[1748870651307,0.19238168,103960.0,103950.0,0.14738902]
[1748870651847,0.19238168,103960.0,103950.0,0.14738928]
[1748870652050,0.19238168,103960.0,103950.0,0.14738939]
[1748870652201,0.22052794,103960.0,103950.0,0.14069515]
[1748870652407,0.22052794,103960.0,103950.0,0.11039515]
[1748870652813,0.22052794,103960.0,103950.0,0.12619515]
[1748870653023,0.22052794,103960.0,103950.0,0.14149515]
[1748870653404,0.22052794,103960.0,103950.0,0.14819115]
[1748870654437,0.22052794,103960.0,103950.0,0.13289115]
[1748870654650,0.22052794,103960.0,103950.0,0.11039515]
[1748870654865,0.22052794,103960.0,103950.0,0.1170923]
[1748870655083,0.22052794,103960.0,103950.0,0.14939258]
[1748870656573,0.22052794,103960.0,103950.0,0.14269515]
[1748870656790,0.22123827,103960.0,103950.0,0.39275413]
[1748870657001,0.21161965,103960.0,103950.0,0.39034963]
[1748870657210,0.19245628,103970.0,103960.0,0.0315]
[1748870657416,0.19245628,103970.0,103960.0,0.13405324]
[1748870657850,0.19245628,103970.0,103960.0,0.13405281]
[1748870658107,0.19245628,103970.0,103960.0,0.13405453]
[1748870658309,0.19245628,103970.0,103960.0,0.1273543]
[1748870658310,0.19345628,103970.0,103960.0,0.1273543]
[1748870658519,0.19345628,103970.0,103960.0,0.13405453]
[1748870659130,0.19345628,103970.0,103960.0,0.13405702]
[1748870659573,0.19345628,103970.0,103960.0,0.20696658]
[1748870659780,0.19445628,103970.0,103960.0,0.13405701]
[1748870659981,0.19345628,103970.0,103960.0,0.13405701]
[1748870660218,0.19245628,103970.0,103960.0,0.13405804]
[1748870662083,0.19245628,103970.0,103960.0,0.13405758]
[1748870662489,0.19245628,103970.0,103960.0,0.13405759]
[1748870662917,0.19245628,103970.0,103960.0,0.1273543]
[1748870663119,0.19245628,103970.0,103960.0,0.13405664]
[1748870663884,0.19245628,103970.0,103960.0,0.13405652]
[1748870665518,0.19238168,103960.0,103940.0,0.3884565]
[1748870665782,0.21163974,103950.0,103940.0,0.88857197]
[1748870665985,0.20202001,103950.0,103940.0,1.00566926]
[1748870666194,0.20202001,103950.0,103940.0,1.00566928]
[1748870666379,0.19240019,103950.0,103940.0,1.00566929]
[1748870666616,0.19240019,103950.0,103940.0,1.00567327]
[1748870666826,0.19240019,103950.0,103940.0,1.00867328]
[1748870667041,0.19240019,103950.0,103940.0,1.01167328]
[1748870667218,0.19240019,103950.0,103940.0,1.00197128]
[1748870667453,0.19240019,103950.0,103940.0,1.01829421]
[1748870667660,0.19240019,103950.0,103940.0,0.79981165]
[1748870667870,0.19240019,103950.0,103940.0,0.80951374]
[1748870668076,0.19240019,103950.0,103940.0,1.01155337]
[1748870668297,0.19240019,103950.0,103940.0,1.0115535]
[1748870668501,0.19240019,103950.0,103940.0,0.80951387]
[1748870668707,0.19240019,103950.0,103940.0,1.00193257]
[1748870668915,0.19240019,103950.0,103940.0,1.01155341]
[1748870669116,0.19240019,103950.0,103940.0,1.00193257]
[1748870669324,0.19240019,103950.0,103940.0,1.00193258]
[1748870669817,0.19240019,103950.0,103940.0,0.99523035]
[1748870670018,0.19240019,103950.0,103940.0,0.51155401]
[1748870670223,0.19240019,103950.0,103940.0,0.80955401]
[1748870670429,0.19240019,103950.0,103940.0,0.80955405]
[1748870670653,0.19240019,103950.0,103940.0,0.80955416]
[1748870671063,0.19240019,103950.0,103940.0,0.80955417]
[1748870671483,0.19240019,103950.0,103940.0,0.51155413]
[1748870671690,0.19240019,103950.0,103940.0,0.80971413]
[1748870671892,0.19240019,103950.0,103940.0,0.46971417]
[1748870672095,0.19240019,103950.0,103940.0,0.17155417]
[1748870672328,0.19240019,103950.0,103940.0,0.46967417]
[1748870672891,0.19240019,103950.0,103940.0,0.46667417]
[1748870673102,0.19240019,103950.0,103940.0,0.15885165]
[1748870673328,0.19240019,103950.0,103940.0,0.16755412]
[1748870673470,0.19240019,103950.0,103940.0,0.16955391]
[1748870673871,0.19240019,103950.0,103940.0,0.13685391]
[1748870674077,0.19240019,103950.0,103940.0,0.12615165]
[1748870674299,0.57722019,103950.0,103940.0,0.12615165]
[1748870674701,0.57722019,103950.0,103940.0,0.0369998]
[1748870675711,0.57722019,103950.0,103940.0,0.03699781]
[1748870675884,0.57722019,103950.0,103940.0,0.05229781]
[1748870676089,0.57722019,103950.0,103940.0,0.03699781]
[1748870676719,0.66973141,103950.0,103940.0,0.03699781]
[1748870676917,0.66973141,103950.0,103940.0,0.0157565]
[1748870677119,0.57722019,103950.0,103940.0,0.0157565]
[1748870677317,0.57722019,103950.0,103940.0,0.02245674]
[1748870677723,0.57722019,103950.0,103940.0,0.02245646]
[1748870678510,0.57722019,103950.0,103940.0,0.0157565]
[1748870678714,0.57722019,103950.0,103940.0,0.02245461]
[1748870679321,0.57722019,103950.0,103940.0,0.0157565]
[1748870679530,0.66973141,103950.0,103940.0,0.02245461]
[1748870679726,0.66973141,103950.0,103940.0,0.0157565]
[1748870679935,0.33268119,103950.0,103940.0,0.0157565]
[1748870680138,0.52508138,103950.0,103940.0,0.0157565]
[1748870681348,0.52508138,103950.0,103940.0,0.0466565]
[1748870683688,0.52508138,103950.0,103940.0,0.0157565]
[1748870686289,3.54416338,103950.0,103940.0,0.0157565]
[1748870686492,3.6366746,103950.0,103940.0,0.0157565]
[1748870686699,4.0055656,103950.0,103940.0,0.0157565]
[1748870687111,3.91305438,103950.0,103940.0,0.0157565]
[1748870687309,4.07642326,103950.0,103940.0,0.0157565]
[1748870687541,4.07742326,103950.0,103940.0,0.0157565]
[1748870689026,0.21170065,103920.0,103910.0,0.08222951]
[1748870689256,0.21170065,103920.0,103910.0,0.18476828]
[1748870689463,0.54438184,103920.0,103910.0,0.18476828]
[1748870689672,0.54438184,103920.0,103910.0,0.18476647]
[1748870690098,0.55905912,103920.0,103910.0,0.18476689]
[1748870690304,0.55905912,103920.0,103910.0,0.19125313]
[1748870690527,0.55905912,103920.0,103910.0,0.18457005]
[1748870691789,0.55905912,103920.0,103910.0,0.18157005]
[1748870692210,0.55905912,103920.0,103910.0,0.17857005]
[1748870692605,0.65157034,103920.0,103910.0,0.17857005]
[1748870692837,0.55905912,103920.0,103910.0,0.17857005]
[1748870693689,0.55905912,103920.0,103910.0,0.16108139]
[1748870694719,0.20209777,103910.0,103900.0,0.0001]
[1748870694928,0.59313777,103910.0,103900.0,0.0001]
[1748870695137,0.53477896,103910.0,103900.0,0.04554085]
[1748870695344,0.53477896,103910.0,103900.0,0.14139515]
[1748870695569,0.54440239,103910.0,103900.0,0.33388793]
[1748870695785,0.35192814,103910.0,103900.0,0.33388793]
[1748870695997,0.55402601,103910.0,103900.0,0.34351247]
[1748870696200,0.54440258,103910.0,103900.0,0.14807712]
[1748870696443,0.54440258,103910.0,103900.0,0.34351256]
[1748870696652,0.54440258,103910.0,103900.0,0.35313701]
[1748870696867,0.54440258,103910.0,103900.0,0.35981894]
[1748870697079,0.54440258,103910.0,103900.0,0.35313701]
[1748870697295,0.54440258,103910.0,103900.0,0.36381894]
[1748870697535,0.54440258,103910.0,103900.0,0.34655256]
[1748870697739,0.54440258,103910.0,103900.0,0.3561771]
[1748870697945,0.54440258,103910.0,103900.0,0.37248414]
[1748870698158,0.54440258,103910.0,103900.0,0.36580155]
[1748870698365,0.54440258,103910.0,103900.0,0.43990379]
[1748870698577,0.54440258,103910.0,103900.0,0.39173283]
[1748870698794,0.34230471,103910.0,103900.0,0.39173219]
[1748870699009,0.55402591,103910.0,103900.0,0.38210818]
[1748870699220,0.55402591,103910.0,103900.0,0.37248391]
[1748870699861,0.54440267,103910.0,103900.0,0.36286034]
[1748870700285,0.53477915,103910.0,103900.0,0.15111858]
[1748870700492,0.52515544,103910.0,103900.0,0.3532359]
[1748870700712,0.52515544,103910.0,103900.0,0.35323739]
[1748870700925,0.52515544,103910.0,103900.0,0.34361281]
[1748870701104,0.52515544,103910.0,103900.0,0.35323744]
[1748870701464,0.52515544,103910.0,103900.0,0.36286198]
[1748870701669,0.52515544,103910.0,103900.0,0.36286187]
[1748870702272,0.52515544,103910.0,103900.0,0.36580155]
[1748870702591,0.52515544,103910.0,103900.0,0.3561771]
[1748870702950,0.52515544,103910.0,103900.0,0.34655256]
[1748870704087,0.59843267,103910.0,103900.0,0.44956362]
[1748870704299,0.52515544,103910.0,103900.0,0.44956367]
[1748870704897,0.52515544,103910.0,103900.0,0.44287515]
[1748870705114,0.52515544,103910.0,103900.0,0.44956368]
[1748870705306,0.52515544,103910.0,103900.0,0.44287515]
[1748870705531,0.52515544,103910.0,103900.0,0.44956369]
[1748870705859,0.52515544,103910.0,103900.0,0.15112369]
[1748870706060,0.52515544,103910.0,103900.0,0.15112447]
[1748870706500,0.52515544,103910.0,103900.0,0.14443515]
[1748870706702,0.52515544,103910.0,103900.0,0.15112447]
[1748870706907,0.52515544,103910.0,103900.0,0.35324186]
[1748870707134,0.52515544,103910.0,103900.0,0.39053188]
[1748870707313,0.52515544,103910.0,103900.0,0.39053209]
[1748870707527,0.52515544,103910.0,103900.0,0.40015654]
[1748870707528,0.34230443,103910.0,103900.0,0.40015654]
[1748870707764,0.34230416,103910.0,103900.0,0.68071477]
[1748870707964,0.37117408,103910.0,103900.0,0.67109182]
[1748870708082,0.37117408,103910.0,103900.0,0.67402526]
[1748870708281,0.36155056,103910.0,103900.0,0.68071579]
[1748870708545,0.37117408,103910.0,103900.0,0.38211575]
[1748870708718,0.37117408,103910.0,103900.0,0.68083573]
[1748870708937,0.37117408,103910.0,103900.0,0.68083658]
[1748870709143,0.37117408,103910.0,103900.0,0.68083657]
[1748870709523,0.36155046,103910.0,103900.0,0.67414526]
[1748870709925,0.36155046,103910.0,103900.0,0.68083864]
[1748870710146,0.35192722,103910.0,103900.0,0.68083864]
[1748870710326,0.33268119,103910.0,103900.0,1.10665648]
[1748870710529,0.34230425,103910.0,103900.0,1.10665648]
[1748870711009,0.33268119,103910.0,103900.0,1.11334964]
[1748870711369,0.34230416,103910.0,103900.0,1.11334964]
[1748870711807,0.33268119,103910.0,103900.0,1.68352194]
[1748870712141,0.33268119,103910.0,103900.0,1.76946878]
[1748870712353,0.33268119,103910.0,103900.0,1.7761705]
[1748870712562,0.33268119,103910.0,103900.0,1.77617049]
[1748870713530,0.33268119,103910.0,103900.0,1.77616909]
[1748870713961,0.33268119,103910.0,103900.0,1.76946878]
[1748870714507,0.33268119,103910.0,103900.0,1.77616895]
[1748870714720,0.33268119,103910.0,103900.0,1.76946878]
[1748870715096,0.33268119,103910.0,103900.0,1.77616891]
[1748870715296,0.33268119,103910.0,103900.0,1.77616895]
[1748870715509,0.33268119,103910.0,103900.0,1.76946878]
[1748870716134,0.33268119,103910.0,103900.0,1.77616897]
[1748870716343,0.33268119,103910.0,103900.0,1.77616992]
[1748870716550,0.33268119,103910.0,103900.0,1.77616988]
[1748870717161,0.33268119,103910.0,103900.0,1.77616591]
[1748870717578,0.33268119,103910.0,103900.0,1.77616532]
[1748870718017,0.33268119,103910.0,103900.0,1.7761654]
[1748870718422,0.33268119,103910.0,103900.0,1.76946878]
[1748870718640,0.33268119,103910.0,103900.0,1.77616458]
[1748870719917,0.33268119,103910.0,103900.0,1.78616458]
[1748870720136,0.33268119,103910.0,103900.0,1.78616064]
[1748870720344,0.33268119,103910.0,103900.0,1.77946878]
[1748870720521,0.33268119,103910.0,103900.0,0.93197782]
[1748870720732,0.33268119,103910.0,103900.0,1.78371964]
[1748870721355,0.33268119,103910.0,103900.0,1.78171964]
[1748870721560,0.33268119,103910.0,103900.0,1.7817163]
[1748870721764,0.33268119,103910.0,103900.0,1.4037963]
[1748870721897,0.33268119,103910.0,103900.0,2.0869963]
[1748870722102,0.33268119,103910.0,103900.0,2.08030878]
[1748870722323,0.33268119,103910.0,103900.0,2.08699429]
[1748870722521,0.33268119,103910.0,103900.0,2.11587534]
[1748870722733,0.33268119,103910.0,103900.0,1.55372896]
[1748870722938,0.33268119,103910.0,103900.0,2.11587428]
[1748870723141,0.33268119,103910.0,103900.0,2.10919078]
[1748870723563,0.33268119,103910.0,103900.0,2.11587427]
[1748870724002,0.33268119,103910.0,103900.0,2.11587357]
[1748870724577,0.33268119,103910.0,103900.0,2.10919078]
[1748870724810,0.33268119,103910.0,103900.0,2.11587331]
[1748870725203,0.33268119,103910.0,103900.0,2.10919078]
[1748870725410,0.33268119,103910.0,103900.0,2.11587549]
[1748870725611,0.33268119,103910.0,103900.0,2.11585886]
[1748870725806,0.33268119,103910.0,103900.0,2.67130405]
[1748870725979,0.33268119,103910.0,103900.0,2.67130401]
[1748870726204,0.33268119,103910.0,103900.0,2.67130389]
[1748870726610,0.33268119,103910.0,103900.0,2.72130389]
[1748870727023,0.33268119,103910.0,103900.0,2.72114328]
[1748870727228,0.33268119,103910.0,103900.0,1.86765809]
[1748870727435,0.33268119,103910.0,103900.0,2.16577809]
[1748870727652,0.33268119,103910.0,103900.0,2.165778]
[1748870727874,0.33268119,103910.0,103900.0,1.867658]
[1748870728076,0.33268119,103910.0,103900.0,2.16573716]
[1748870728278,0.33268119,103910.0,103900.0,2.72118235]
[1748870728492,0.33268119,103910.0,103900.0,2.41641934]
[1748870728713,0.33268119,103910.0,103900.0,2.72122232]
[1748870729161,0.3264282,103910.0,103900.0,2.72122232]
[1748870729375,0.2993821,103910.0,103900.0,2.71453934]
[1748870730236,0.2993821,103910.0,103900.0,2.72122262]
[1748870731298,0.2993821,103910.0,103900.0,2.72114206]
[1748870731508,0.00048385,103920.0,103910.0,0.63588512]
[1748870731694,0.07696378,103950.0,103940.0,0.82376642]
[1748870731934,0.07696378,103950.0,103940.0,1.31714396]
[1748870732585,0.46178378,103950.0,103940.0,1.31054072]
[1748870732805,0.38482,103950.0,103940.0,1.3171415]
[1748870733018,0.38482,103950.0,103940.0,1.40969267]
[1748870733229,0.38482,103950.0,103940.0,1.40969245]
[1748870733449,0.38482,103950.0,103940.0,1.40969246]
[1748870733671,0.38482,103950.0,103940.0,1.4096925]
[1748870733894,0.38482,103950.0,103940.0,1.41625306]
[1748870734097,0.38482,103950.0,103940.0,1.02533306]
[1748870734379,0.38482,103950.0,103940.0,1.41621306]
[1748870734589,0.38482,103950.0,103940.0,1.4096125]
[1748870735660,0.39443917,103950.0,103940.0,1.1111325]
[1748870735861,0.38482,103950.0,103940.0,1.4094925]
[1748870736067,0.38482,103950.0,103940.0,1.41609396]
[1748870736690,0.38482,103950.0,103940.0,0.86064877]
[1748870736904,0.38482,103950.0,103940.0,2.32153742]
[1748870737115,0.02,103970.0,103960.0,1.72926904]
[1748870737323,0.02,103970.0,103960.0,2.78079735]
[1748870737531,0.26222761,104020.0,104010.0,0.22605859]
[1748870737532,0.23711038,104020.0,104010.0,0.22605859]
[1748870737754,0.23711038,104020.0,104010.0,0.11039515]
[1748870737755,0.2274974,104020.0,104010.0,0.11039515]
[1748870737979,0.7995879,104020.0,104010.0,0.11039515]
[1748870738462,1.1979534,104020.0,104010.0,0.11039515]
[1748870738699,1.1979534,104020.0,104010.0,0.17149077]
[1748870739146,0.64450821,104020.0,104010.0,0.17149077]
[1748870739370,1.1999534,104020.0,104010.0,0.0958543]
[1748870739808,1.23638649,104020.0,104010.0,0.0958543]
[1748870740029,1.23638649,104020.0,103990.0,0.44694085]
[1748870740030,0.20195928,103990.0,103970.0,0.32024178]
[1748870740232,0.02885021,103980.0,103970.0,0.3460595]
[1748870740434,0.01923326,103980.0,103970.0,0.84748587]
[1748870740645,0.01923326,103980.0,103970.0,1.18748602]
[1748870740850,0.01923326,103980.0,103970.0,1.18744602]
[1748870741052,0.01923326,103980.0,103970.0,1.18086362]
[1748870741258,0.01923326,103980.0,103970.0,1.1914475]
[1748870741464,0.40379326,103980.0,103970.0,1.1914475]
[1748870741907,0.39417649,103980.0,103970.0,1.1954475]
[1748870742082,0.41340993,103980.0,103970.0,1.19144619]
[1748870742293,0.40379307,103980.0,103970.0,1.19144619]
[1748870742493,0.40379307,103980.0,103970.0,1.18486362]
[1748870742694,0.40379307,103980.0,103970.0,1.19524619]